bitfinex/quotes_ETHUSD_20240925
["timestamp","ask_amount","ask_price","bid_price","bid_amount"]
[1727305785353,0.55,2578.3,2578.2,3.87867]
[1727305785545,0.812643,2578.3,2578.2,3.87867]
[1727305785751,1.690843,2578.4,2578.3,3.87852]
[1727305786752,1.21736059,2578.5,2578.3,3.87852]
[1727305786753,0.812643,2578.5,2578.3,3.87852]
[1727305786948,9.39162321,2578.9,2578.6,3.87807]
[1727305786949,0.812643,2578.8,2578.6,3.87807]
[1727305787193,1.61527865,2579.0,2578.9,3.87762]
[1727305787194,0.812643,2579.0,2578.9,3.87762]
[1727305788451,0.812643,2579.0,2578.8,3.87775]
[1727305788452,0.81240533,2579.1,2578.8,3.87775]
[1727305788651,0.81240533,2579.0,2578.9,3.87752]
[1727305788893,0.81240533,2579.1,2579.0,4.77007]
[1727305789054,0.81240533,2579.5,2579.4,3.87687]
[1727305789258,2.10266059,2579.6,2579.4,3.87687]
[1727305789259,0.81240533,2579.6,2579.5,3.87672]
[1727305789497,1.69770533,2579.8,2579.5,3.87672]
[1727305789826,1.21736059,2579.9,2579.7,3.87641]
[1727305789827,0.81240533,2579.9,2579.7,3.87641]
[1727305790114,0.81240533,2579.8,2579.6,3.87655]
[1727305790492,0.81240533,2579.9,2579.6,3.87655]
[1727305790691,0.81240533,2579.9,2579.5,3.87672]
[1727305790692,3.0,2579.9,2579.5,3.87672]
[1727305790896,4.66900533,2580.0,2579.8,3.87626]
[1727305791093,4.66900533,2580.0,2579.7,3.87641]
[1727305791725,0.909,2580.1,2579.8,3.87624]
[1727305791893,0.909,2580.1,2579.9,3.87604]
[1727305792418,0.909,2580.1,2579.4,0.9027]
[1727305792591,0.909,2580.1,2579.6,3.87655]
[1727305792924,0.909,2580.1,2579.8,3.87618]
[1727305793284,0.55,2580.0,2579.1,4.77997]
[1727305793480,0.55,2580.0,2579.0,3.87737]
[1727305793481,0.909,2579.4,2579.0,3.87737]
[1727305793780,1.00592985,2579.4,2579.0,3.87737]
[1727305794325,1.00592985,2579.4,2579.1,3.87731]
[1727305794326,0.909,2579.4,2579.1,3.87731]
[1727305794492,0.909,2579.4,2579.0,7.75474]
[1727305796220,0.909,2579.4,2579.1,3.87729]
[1727305799889,0.909,2579.4,2579.2,3.87702]
[1727305800291,0.55,2579.6,2579.2,3.87702]
[1727305800497,1.381644,2579.6,2578.9,4.86308676]
[1727305800824,0.55,2579.7,2579.3,3.87691]
[1727305801034,0.831645,2579.6,2579.3,3.87691]
[1727305801731,0.831645,2579.6,2579.2,3.87713]
[1727305801934,3.831645,2579.6,2579.1,3.87731]
[1727305802094,3.831645,2579.6,2579.2,3.87713]
[1727305802632,3.831645,2579.6,2579.3,3.87699]
[1727305802996,3.0,2579.6,2579.3,3.87693]
[1727305803198,7.36,2579.9,2579.8,3.87626]
[1727305803398,0.0374707,2580.2,2580.0,3.87589]
[1727305803597,0.0374707,2580.2,2580.1,3.87581]
[1727305804443,0.0374707,2580.2,2580.1,4.73681]
[1727305806039,0.0374707,2580.2,2580.1,3.87581]
[1727305809305,0.0374707,2580.2,2580.1,8.45560928]
[1727305809507,0.0374707,2580.2,2580.1,8.42026692]
[1727305809909,0.0374707,2580.2,2580.1,4.75061]
[1727305810444,0.0374707,2580.2,2580.1,8.42026692]
[1727305810604,0.0374707,2581.0,2580.9,4.71691]
[1727305811212,0.0374707,2581.0,2580.9,3.87461]
[1727305812426,0.0374707,2581.0,2580.6,4.71726]
[1727305812663,0.0374707,2581.0,2580.9,3.87461]
[1727305813389,0.0374707,2581.0,2580.8,3.87465]
[1727305813539,0.0374707,2581.0,2580.9,3.87461]
[1727305814630,0.0374707,2581.0,2580.9,4.72681]
[1727305817339,0.0374707,2581.0,2580.9,3.87461]
[1727305819844,0.0374707,2581.0,2580.9,4.75271]
[1727305820856,0.0374707,2581.0,2580.9,3.87461]
[1727305825457,0.0374707,2581.0,2580.6,4.75315]
[1727305826053,0.0374707,2581.0,2580.6,8.62801]
[1727305826252,0.0374707,2581.0,2580.6,4.75304]
[1727305826561,0.0374707,2581.0,2580.6,8.62802]
[1727305827144,0.0374707,2581.0,2580.6,0.8781]
[1727305827449,0.0374707,2581.0,2579.8,3.87613]
[1727305827450,0.9146,2580.4,2579.8,3.87613]
[1727305827581,0.9146,2580.4,2579.7,3.87632]
[1727305827779,0.9146,2580.4,2579.7,3.8763]
[1727305827994,3.0,2580.3,2579.5,0.8587]
[1727305828211,6.97249378,2580.3,2579.5,0.8587]
[1727305828378,3.0,2580.3,2579.6,3.87655]
[1727305828590,0.9146,2580.4,2579.7,3.87632]
[1727305829392,0.9146,2580.4,2579.6,3.87655]
[1727305829682,0.9146,2580.4,2579.6,7.75295]
[1727305830021,3.9084,2580.7,2579.9,3.87602]
[1727305830233,3.9084,2580.7,2580.0,3.87594]
[1727305830401,0.9084,2580.7,2580.1,3.87572]
[1727305830600,3.9120107,2581.0,2580.2,4.77669]
[1727305830601,0.8676707,2581.0,2580.2,4.77669]
[1727305830783,0.8676707,2581.0,2580.3,3.87542]
[1727305831112,0.8676707,2581.0,2580.2,4.77669]
[1727305831113,0.0374707,2581.0,2580.5,3.87513]
[1727305831318,0.0374707,2581.0,2580.8,0.9011]
[1727305831626,0.0374707,2581.0,2580.8,4.77583]
[1727305832208,0.0374707,2581.0,2580.9,3.87461]
[1727305832627,0.0374707,2581.0,2580.9,3.95182709]
[1727305833101,0.0374707,2581.0,2580.9,3.95181754]
[1727305833431,0.0374707,2581.0,2580.9,4.77851]
[1727305834488,0.0374707,2581.0,2580.9,0.9039]
[1727305835314,0.0374707,2581.0,2580.9,4.77851]
[1727305839081,0.0374707,2581.0,2580.9,8.44816692]
[1727305840690,0.0374707,2581.0,2580.9,4.77851]
[1727305847477,3.9108307,2581.8,2580.9,4.77851]
[1727305847478,0.0374707,2581.8,2581.7,3.87341]
[1727305850250,0.0374707,2581.8,2581.6,3.87355]
[1727305850566,0.0374707,2581.8,2581.7,3.87341]
[1727305854082,0.0374707,2581.8,2581.7,4.72771]
[1727305854866,0.0374707,2581.8,2581.7,4.80485419]
[1727305855240,0.0374707,2581.8,2581.7,4.72771]
[1727305855633,0.0374707,2581.8,2581.7,3.87341]
[1727305856448,0.0374707,2581.8,2581.6,3.87355]
[1727305856661,0.0374707,2581.8,2581.7,3.87341]
[1727305858038,0.0374707,2581.8,2581.6,3.87355]
[1727305858603,1.21736059,2582.5,2580.9,6.66965692]
[1727305858604,0.81240533,2582.5,2582.1,3.87268]
[1727305858801,0.8984707,2582.6,2582.3,3.87243]
[1727305859099,0.8984707,2582.6,2582.5,3.87221]
[1727305859246,0.0374707,2582.6,2582.5,3.87221]
[1727305859684,0.0374707,2582.6,2582.4,3.87235]
[1727305859843,0.0374707,2582.6,2582.4,3.87228]
[1727305860247,0.0374707,2582.6,2582.5,3.87221]
[1727305862827,0.0374707,2582.6,2582.5,8.44546692]
[1727305863395,0.0374707,2582.6,2582.5,4.77581]
[1727305865835,0.9080707,2582.6,2582.0,3.87287]
[1727305866126,4.7802207,2582.6,2582.1,3.8727]
[1727305866290,4.7802207,2582.6,2582.0,3.87286]
[1727305866495,5.25824277,2582.6,2582.0,3.87286]
[1727305866823,5.25824277,2582.6,2582.1,3.87279]
[1727305867037,0.8679,2582.4,2581.8,3.87323]
[1727305867335,4.74094,2582.0,2581.5,3.87361]
[1727305867927,0.8679,2582.0,2581.5,3.87361]
[1727305868132,0.8679,2582.0,2581.7,3.8734]
[1727305868497,0.8679,2582.0,2581.5,3.87357]
[1727305868701,0.8679,2582.0,2581.6,3.87345]
[1727305868943,0.8679,2582.0,2581.7,3.87339]
[1727305869434,0.8679,2582.0,2581.6,3.87356]
[1727305870338,0.9142,2581.9,2581.1,3.87423]
[1727305870632,0.9142,2581.5,2581.0,3.87443]
[1727305870788,4.78792,2581.5,2580.9,7.74896]
[1727305870992,4.78792,2581.5,2580.9,3.87448]
[1727305871402,0.9142,2581.5,2581.1,3.87431]
[1727305872433,4.78792,2581.5,2580.9,7.74901]
[1727305872591,0.9142,2581.5,2581.0,3.87432]
[1727305872936,0.9142,2581.5,2581.1,3.87428]
[1727305873099,0.9142,2581.5,2580.9,3.87448]
[1727305873100,0.8713,2581.4,2580.5,4.73255]
[1727305873300,0.8713,2581.2,2580.7,3.87483]
[1727305873928,0.8713,2581.2,2580.5,3.87521]
[1727305874236,0.8713,2581.2,2580.8,3.87462]
[1727305874838,0.8713,2581.2,2581.0,3.87442]
[1727305875428,0.8713,2581.2,2581.0,3.87438]
[1727305875631,0.8846,2581.5,2581.1,3.87416]
[1727305876339,0.8846,2581.2,2580.7,7.7496]
[1727305876490,0.8846,2581.2,2580.8,3.87473]
[1727305877299,0.8846,2581.2,2580.9,3.87461]
[1727305877993,0.8846,2581.2,2580.7,7.74962]
[1727305878208,0.8846,2581.2,2580.8,3.87467]
[1727305878810,0.8846,2581.2,2580.9,3.87459]
[1727305879136,0.8846,2581.2,2580.9,7.74912]
[1727305879326,0.8846,2581.2,2580.9,3.87453]
[1727305879722,0.8846,2581.2,2581.0,3.87435]
[1727305879924,0.8846,2581.2,2580.9,3.87452]
[1727305880131,0.8846,2581.2,2580.9,7.74904]
[1727305880715,0.8846,2581.2,2580.9,3.87452]
[1727305881031,0.8846,2581.2,2580.7,3.87477]
[1727305881729,0.8846,2581.2,2580.9,3.8746]
[1727305882038,0.8846,2581.2,2580.9,3.87453]
[1727305882246,0.8846,2581.2,2581.0,3.87446]
[1727305883104,0.8852,2581.5,2581.3,3.87401]
[1727305883337,0.8852,2581.5,2581.4,3.87386]
[1727305883650,3.0,2581.9,2581.4,3.87386]
[1727305883850,0.8852,2581.8,2581.6,7.74695]
[1727305884150,0.8852,2581.8,2581.7,3.87341]
[1727305884443,0.8852,2581.8,2581.2,3.87413]
[1727305884444,0.8852,2581.8,2581.4,3.87377]
[1727305884613,0.8852,2581.8,2581.3,3.87401]
[1727305885134,0.8852,2581.8,2580.9,0.8434]
[1727305885447,0.8852,2581.8,2581.4,7.74754]
[1727305885654,0.8852,2581.8,2581.0,3.87433]
[1727305886540,0.8852,2581.8,2580.9,4.71793]
[1727305887042,3.0,2582.0,2581.3,3.8739]
[1727305887276,2.49357865,2582.3,2581.6,3.87354]
[1727305887277,0.8783,2582.3,2581.6,3.87354]
[1727305887546,0.8783,2582.3,2581.7,3.87337]
[1727305888604,0.8783,2582.3,2581.8,0.07716568]
[1727305890450,0.8783,2582.3,2581.7,7.74665]
[1727305890613,0.8783,2582.3,2581.8,3.87323]
[1727305891015,0.8783,2582.3,2581.6,3.87354]
[1727305891211,0.55,2582.2,2581.3,3.87392]
[1727305891455,0.8789,2582.1,2581.3,7.7478]
[1727305891758,0.8789,2582.1,2581.4,3.87384]
[1727305894060,0.8789,2582.1,2581.5,3.87369]
[1727305894951,0.8789,2582.1,2581.5,7.74738]
[1727305895933,0.8789,2582.1,2581.8,3.87317]
[1727305896253,0.8789,2582.1,2581.9,3.8731]
[1727305897453,0.8591,2582.3,2581.9,3.8731]
[1727305897666,0.8591,2582.3,2582.1,3.8727]
[1727305897847,0.8591,2582.3,2582.1,7.7454]
[1727305898019,0.8591,2582.3,2582.2,3.87266]
[1727305898630,0.8591,2582.3,2582.1,3.8727]
[1727305899328,0.9377707,2582.6,2582.2,0.07713836]
[1727305899535,0.9377707,2582.6,2582.4,3.87229]
[1727305899743,0.0374707,2582.6,2582.5,3.87221]
[1727305902612,0.0374707,2582.6,2582.5,3.94930997]
[1727305903303,0.0374707,2582.6,2582.5,3.87221]
[1727305903473,0.0374707,2582.6,2582.5,4.75751]
[1727305904981,0.0374707,2583.3,2582.5,4.75751]
[1727305904982,0.0374707,2583.3,2583.2,4.75236]
[1727305905806,0.0374707,2583.3,2583.2,4.77381961]
[1727305906007,0.0374707,2583.3,2583.2,4.82936149]
[1727305906361,0.0374707,2583.3,2583.2,9.25503577]
[1727305906693,0.0374707,2583.3,2583.2,12.25503577]
[1727305907777,0.0374707,2583.3,2583.2,12.80503577]
[1727305907963,0.0374707,2584.1,2584.0,3.86996]
[1727305910582,0.0374707,2584.1,2583.9,3.87009]
[1727305910785,0.8604,2584.0,2583.7,3.87036]
[1727305910991,0.8604,2584.0,2583.3,3.87092]
[1727305911207,1.72415807,2584.0,2583.5,3.87071]
[1727305911671,5.59413807,2584.0,2583.5,3.87071]
[1727305911898,3.87024,2583.9,2583.3,3.87092]
[1727305912104,0.8916,2583.8,2583.3,3.87092]
[1727305913324,3.8705,2583.7,2583.1,7.74245]
[1727305914021,0.55,2583.4,2582.7,3.87179]
[1727305914317,0.8629,2583.2,2582.7,7.7436]
[1727305915515,0.8629,2583.2,2582.7,3.87179]
[1727305915875,0.8629,2583.2,2582.8,3.87174]
[1727305917281,0.8629,2583.2,2582.9,3.87158]
[1727305918019,0.8629,2583.2,2582.7,3.87179]
[1727305918319,1.391277,2583.2,2582.7,3.87179]
[1727305918619,1.391277,2583.2,2582.7,7.74362]
[1727305918821,1.391277,2583.2,2582.8,3.87175]
[1727305919220,0.8629,2583.2,2582.9,3.8716]
[1727305920778,0.8629,2583.2,2583.1,3.87131]
[1727305921077,0.8636,2583.5,2583.4,3.87077]
[1727305922060,7.3974707,2584.1,2583.4,3.87077]
[1727305922061,0.8461,2583.8,2583.7,3.8703]
[1727305923868,0.9158707,2584.1,2583.9,3.87003]
[1727305924785,0.9158707,2584.1,2583.9,3.87009]
[1727305926976,0.9158707,2584.1,2583.8,3.87024]
[1727305928763,0.9158707,2584.1,2583.7,3.8703]
[1727305929649,0.9158707,2584.1,2582.8,0.9139]
[1727305929650,3.87036,2583.8,2582.8,0.9139]
[1727305929879,3.87036,2583.8,2583.3,3.87101]
[1727305930193,0.8546,2583.9,2583.6,3.87055]
[1727305930937,0.8546,2583.9,2583.4,3.87076]
[1727305931138,1.63080407,2583.9,2583.4,3.87076]
[1727305931382,3.87079,2583.5,2583.0,7.74275]
[1727305931588,5.31652,2583.7,2583.2,3.87114]
[1727305931589,0.896,2583.7,2583.2,3.87114]
[1727305931885,0.896,2583.7,2583.4,3.87076]
[1727305932176,0.896,2583.7,2583.3,3.871]
[1727305932383,0.896,2583.7,2583.3,3.8709]
[1727305932750,0.896,2583.7,2583.5,3.87071]
[1727305933075,0.896,2583.7,2583.5,7.74133]
[1727305933255,0.896,2583.7,2583.5,3.87062]
[1727305934470,0.896,2583.7,2583.5,7.74124]
[1727305934660,0.896,2583.7,2583.5,3.87062]
[1727305937394,0.896,2583.7,2583.4,3.87086]
[1727305938048,0.896,2583.7,2582.8,0.9139]
[1727305938049,0.896,2583.7,2583.2,3.87107]
[1727305938249,0.896,2583.7,2583.1,3.8712]
[1727305938560,0.896,2583.7,2583.3,3.87101]
[1727305939095,0.896,2583.7,2583.1,3.8712]
[1727305939096,3.87058,2583.6,2583.1,3.8712]
[1727305939400,3.87058,2583.6,2582.9,3.87157]
[1727305939546,7.74128,2583.6,2582.9,3.87151]
[1727305939747,3.87058,2583.6,2583.1,3.87117]
[1727305940023,0.896,2583.7,2583.1,3.87117]
[1727305940171,0.896,2583.7,2583.3,3.871]
[1727305940781,0.896,2583.7,2583.1,3.87122]
[1727305941003,0.896,2583.7,2583.3,3.87101]
[1727305942516,4.76643,2583.7,2583.3,3.87101]
[1727305943576,0.896,2583.7,2583.3,3.87101]
[1727305944679,0.896,2583.7,2583.4,3.87077]
[1727305946030,0.896,2583.7,2583.3,3.87099]
[1727305946174,5.930127,2583.7,2583.2,3.87113]
[1727305946519,3.87068,2583.6,2583.1,3.87122]
[1727305946707,5.930127,2583.7,2583.2,3.87104]
[1727305947799,5.930127,2583.7,2583.0,3.87136]
[1727305948027,5.930127,2583.7,2583.2,3.87115]
[1727305948028,9.800677,2583.7,2583.2,3.87115]
[1727305948186,11.01803759,2583.7,2583.2,3.87115]
[1727305948390,7.14748759,2583.7,2583.2,3.87115]
[1727305949134,7.14748759,2583.7,2583.3,3.871]
[1727305949431,5.98384059,2583.7,2583.3,3.871]
[1727305949791,0.896,2583.7,2583.5,3.87059]
[1727305950092,4.61527865,2583.9,2583.5,3.87059]
[1727305950093,5.08886059,2583.9,2583.5,3.87059]
[1727305950985,8.95904059,2583.9,2583.4,3.8708]
[1727305951188,1.21736059,2583.8,2583.4,3.8708]
[1727305951403,0.9149,2583.6,2583.2,3.87111]
[1727305951929,2.06374192,2583.6,2582.8,0.8917]
[1727305952138,7.7416,2583.5,2583.0,3.87142]
[1727305952549,3.8708,2583.5,2583.0,3.87142]
[1727305952701,0.8444,2583.1,2582.6,3.87196]
[1727305952896,0.8444,2583.1,2582.5,3.8722]
[1727305953104,0.8444,2583.1,2582.9,3.87151]
[1727305953483,1.61527865,2583.4,2582.5,3.87219]
[1727305953484,5.04876059,2583.4,2583.2,3.87114]
[1727305953602,2.02674101,2583.7,2583.0,3.87136]
[1727305953603,5.04876059,2583.6,2583.0,3.87136]
[1727305953808,1.21736059,2583.5,2583.0,3.87135]
[1727305954249,1.21736059,2583.5,2583.1,3.87122]
[1727305954537,3.8314,2583.6,2583.3,3.87087]
[1727305954538,2.04876059,2583.6,2583.3,3.87087]
[1727305955067,0.8314,2583.6,2583.3,3.87087]
[1727305955224,0.8314,2583.6,2583.4,3.87081]
[1727305955420,0.8314,2583.6,2582.9,3.87157]
[1727305955421,4.21736059,2583.7,2583.5,3.87071]
[1727305955966,5.07676059,2583.8,2583.5,3.87071]
[1727305957550,5.07676059,2583.8,2583.0,7.74276]
[1727305957724,5.07676059,2583.8,2583.0,3.87134]
[1727305958762,5.07676059,2583.8,2582.9,2.41267259]
[1727305958763,1.21736059,2583.7,2582.9,1.15803441]
[1727305958999,1.21736059,2583.9,2583.5,3.87064]
[1727305959277,0.9118707,2584.1,2583.6,3.9474452]
[1727305959482,0.0374707,2584.1,2583.6,3.9474452]
[1727305959776,1.25483129,2584.1,2583.4,8.39236048]
[1727305960279,5.08733059,2584.0,2583.4,0.867]
[1727305960433,1.21736059,2583.9,2583.4,0.867]
[1727305960634,4.74475,2583.8,2583.1,0.867]
[1727305960948,2.09176059,2583.8,2583.1,5.06402481]
[1727305961282,0.8744,2583.8,2583.1,5.06402481]
[1727305961574,2.09176059,2583.8,2583.1,4.73823]
[1727305962079,2.09176059,2583.8,2583.2,0.0770311]
[1727305962279,5.96203059,2583.8,2583.1,0.867]
[1727305963079,5.96203059,2583.8,2583.1,4.73831]
[1727305963432,2.09176059,2583.8,2583.0,4.19720031]
[1727305963631,1.21736059,2583.6,2582.9,1.20327031]
[1727305963857,1.21736059,2583.6,2582.9,0.8774]
[1727305964178,5.48576865,2583.7,2582.9,4.74888]
[1727305964179,1.21736059,2583.5,2582.9,4.74888]
[1727305964349,1.21736059,2583.6,2582.9,4.74888]
[1727305964551,1.21736059,2583.5,2582.9,0.8774]
[1727305965075,1.21736059,2583.5,2582.5,0.81290182]
[1727305965076,3.87125,2583.2,2582.5,0.81290182]
[1727305965257,1.21736059,2583.1,2582.5,3.87212]
[1727305965453,5.08861059,2583.2,2582.5,3.87212]
[1727305965694,1.21736059,2583.1,2582.5,3.87212]
[1727305967381,3.87125,2583.2,2582.5,3.87212]
[1727305967382,5.08861059,2583.2,2582.5,3.87212]
[1727305968318,5.08861059,2583.2,2582.7,3.87179]
[1727305968319,1.21736059,2583.2,2582.7,3.87179]
[1727305968476,1.21736059,2583.2,2582.5,3.87211]
[1727305968680,5.08853059,2583.2,2582.5,7.74421]
[1727305968921,5.08853059,2583.2,2582.6,3.87204]
[1727305970478,4.21736059,2583.2,2582.7,3.87182]
[1727305973212,8.08852059,2583.2,2582.7,3.87182]
[1727305973401,3.87134,2583.1,2582.5,3.8721]
[1727305973598,3.87134,2583.1,2582.6,3.87205]
[1727305973800,0.8566,2583.0,2582.6,3.87205]
[1727305974033,0.8566,2583.0,2582.7,3.87189]
[1727305974355,0.8566,2583.0,2582.8,3.87173]
[1727305974657,3.831,2583.2,2582.8,3.87173]
[1727305974825,5.04836059,2583.2,2582.8,3.87173]
[1727305976016,3.831,2583.2,2582.9,3.87158]
[1727305976419,4.21736059,2583.3,2583.0,3.87134]
[1727305976646,5.05056059,2583.4,2583.0,3.87134]
[1727305977020,0.8651,2583.2,2582.7,3.87191]
[1727305977219,4.73634,2583.2,2582.7,3.87191]
[1727305977519,5.95370059,2583.2,2582.7,3.87191]
[1727305977762,5.95370059,2583.2,2582.4,0.8668]
[1727305977763,3.87154,2583.0,2582.5,3.8722]
[1727305978205,5.08877059,2583.1,2582.6,3.87205]
[1727305978504,0.8749,2582.9,2582.6,3.87205]
[1727305979409,1.45707369,2582.9,2582.4,3.87226]
[1727305979704,6.54613428,2582.9,2582.4,3.87226]
[1727305979903,3.87201,2582.7,2582.2,3.87264]
[1727305980111,0.8743,2582.5,2582.1,3.8728]
[1727305980600,0.8743,2582.5,2582.0,3.87287]
[1727305980800,4.74661,2582.5,2582.0,3.87287]
[1727305981024,3.87243,2582.4,2581.8,3.87316]
[1727305981169,0.8743,2582.1,2581.8,3.87316]
[1727305981559,0.8743,2582.1,2581.9,3.87308]
[1727305982801,0.8743,2582.1,2581.8,3.87316]
[1727305984566,4.74713,2582.1,2581.6,3.87345]
[1727305984993,0.8743,2582.1,2581.7,3.87339]
[1727305990265,0.8743,2582.1,2581.8,3.87318]
[1727305990547,0.8743,2582.1,2581.9,3.87309]
[1727305991947,0.8743,2582.1,2581.8,3.87323]
[1727305993154,0.8743,2582.1,2581.5,3.8736]
[1727305993307,0.8743,2582.1,2581.7,3.87338]
[1727305993512,0.8743,2582.1,2581.7,3.87332]
[1727305995133,0.8743,2582.1,2581.7,7.74664]
[1727305995333,1.40404674,2582.1,2581.5,3.87361]
[1727305995551,5.27692674,2582.1,2581.5,3.87361]
[1727305995754,5.27692674,2582.1,2581.5,7.74723]
[1727305995958,5.27692674,2582.1,2581.6,3.87356]
[1727305997071,4.78799967,2582.0,2581.5,3.87361]
[1727305997288,0.8706,2581.7,2581.4,3.87386]
[1727305997674,0.8706,2581.7,2581.3,3.87394]
[1727305998075,0.8706,2581.7,2581.4,3.87385]
[1727305999210,0.8706,2581.7,2581.4,3.87379]
[1727306000061,3.87366,2581.6,2581.1,3.8743]
[1727306000283,3.87366,2581.6,2581.0,3.9118107]
[1727306000284,3.87375,2581.5,2581.0,3.9118107]
[1727306000488,0.8919,2581.4,2581.0,3.9118107]
[1727306000685,3.0,2581.3,2581.0,0.0374707]
[1727306000882,3.87425,2581.2,2581.0,0.0374707]
[1727306001095,4.71851,2581.1,2581.0,0.0374707]
[1727306001305,8.26851,2581.1,2581.0,0.0374707]
[1727306001485,10.14824505,2581.1,2581.0,0.0374707]
[1727306005789,13.80283553,2581.1,2581.0,0.0374707]
[1727306007626,13.25283553,2581.1,2581.0,0.0374707]
[1727306008128,7.71851,2581.1,2581.0,0.0374707]
[1727306009403,11.92310048,2581.1,2581.0,0.0374707]
[1727306011241,8.26851,2581.1,2581.0,0.0374707]
[1727306011390,11.92310048,2581.1,2581.0,0.0374707]
[1727306014751,31.84310048,2581.1,2581.0,0.0374707]
[1727306014889,35.41483553,2581.1,2581.0,0.0374707]
[1727306016057,37.41483553,2581.1,2581.0,0.0374707]
[1727306016341,37.41483553,2581.1,2580.2,0.0374707]
[1727306016342,8.26821,2580.3,2580.2,0.0374707]
[1727306017633,11.92280048,2580.3,2580.2,0.0374707]
[1727306017931,13.50261853,2580.3,2580.2,0.0374707]
[1727306020038,9.84802805,2580.3,2580.2,0.0374707]
[1727306020234,13.50261853,2580.3,2580.2,0.0374707]
[1727306027336,12.10991853,2580.3,2580.2,0.0374707]
[1727306028666,12.65991853,2580.3,2580.2,0.0374707]
[1727306029229,3.87477,2580.8,2580.2,0.0374707]
[1727306029230,0.8306,2580.8,2580.2,0.0374707]
[1727306029440,3.87551,2580.3,2580.2,0.0374707]
[1727306030563,6.87551,2580.3,2580.2,0.0374707]
[1727306031076,3.0,2580.3,2580.2,0.0374707]
[1727306031465,6.87551,2580.3,2580.2,0.0374707]
[1727306032131,3.0,2580.3,2580.2,0.0374707]
[1727306032572,8.500594,2580.3,2580.2,0.0374707]
[1727306032773,3.55,2580.3,2580.2,0.0374707]
[1727306032980,7.42551,2580.3,2580.2,0.0374707]
[1727306036282,7.52241208,2580.3,2580.2,0.0374707]
[1727306036982,11.08010048,2580.3,2580.2,0.0374707]
[1727306037987,11.94050048,2580.3,2580.2,0.0374707]
[1727306038190,13.52208853,2580.3,2580.2,0.0374707]
[1727306040664,14.73944912,2580.3,2580.2,0.0374707]
[1727306040857,16.73944912,2580.3,2580.2,0.0374707]
[1727306041109,36.65944912,2580.3,2580.2,0.0374707]
[1727306041403,37.46389479,2580.3,2580.2,0.0374707]
[1727306041552,37.86852837,2580.3,2580.2,0.0374707]
[1727306042222,35.46474244,2580.3,2580.2,0.0374707]
[1727306042498,35.46389479,2580.3,2580.2,0.0374707]
[1727306042883,35.0611629,2580.3,2580.2,0.0374707]
[1727306043190,34.65644025,2580.3,2580.2,0.0374707]
[1727306043393,34.10644025,2580.3,2580.2,0.0374707]
[1727306043997,29.23749805,2580.3,2580.2,0.0374707]
[1727306044307,5.45709805,2580.3,2580.2,0.0374707]
[1727306045407,10.22144977,2580.3,2580.2,0.0374707]
[1727306045619,9.00709805,2580.3,2580.2,0.0374707]
[1727306046318,8.08986172,2580.3,2580.2,0.0374707]
[1727306046821,3.87538,2580.4,2580.2,0.0374707]
[1727306046822,1.21435172,2580.4,2580.2,0.0374707]
[1727306046980,3.87551,2580.3,2580.2,0.0374707]
[1727306047631,5.08986172,2580.3,2580.2,0.0374707]
[1727306047911,3.87551,2580.3,2580.2,0.0374707]
[1727306048220,8.84941066,2580.3,2580.2,0.0374707]
[1727306048517,10.06376238,2580.3,2580.2,0.0374707]
[1727306048722,8.84941066,2580.3,2580.2,0.0374707]
[1727306048930,10.06376238,2580.3,2580.2,0.0374707]
[1727306049077,4.21435172,2580.4,2580.2,0.0374707]
[1727306049274,6.87551,2580.3,2580.2,0.0374707]
[1727306049493,8.08986172,2580.4,2580.2,0.0374707]
[1727306049691,11.96533172,2580.4,2580.2,0.0374707]
[1727306050091,8.08982172,2580.4,2580.2,0.0374707]
[1727306050314,11.96528172,2580.4,2580.2,0.0374707]
[1727306050519,1.21435172,2580.3,2580.2,0.0374707]
[1727306050723,8.08986172,2580.3,2580.2,0.0374707]
[1727306050908,10.36375638,2580.3,2580.2,0.0374707]
[1727306051085,10.36752361,2580.3,2580.2,0.0374707]
[1727306051289,9.14940466,2580.3,2580.2,0.0374707]
[1727306051782,10.76847903,2580.3,2580.2,0.0374707]
[1727306052114,9.14940466,2580.3,2580.2,0.0374707]
[1727306052322,10.76847903,2580.3,2580.2,0.0374707]
[1727306052699,13.67969514,2580.3,2580.2,0.0374707]
[1727306053531,15.7098775,2580.3,2580.2,0.0374707]
[1727306054241,14.42849288,2580.3,2580.2,0.0374707]
[1727306054543,10.77425199,2580.3,2580.2,0.0374707]
[1727306054864,10.77425233,2580.3,2580.2,0.0374707]
[1727306055046,9.14940466,2580.3,2580.2,0.0374707]
[1727306055563,11.18080304,2580.3,2580.2,0.0374707]
[1727306060157,11.18257488,2580.3,2580.2,0.0374707]
[1727306060353,11.18262127,2580.3,2580.2,0.0374707]
[1727306060578,9.14940466,2580.3,2580.2,0.0374707]
[1727306062377,5.03368771,2580.3,2580.2,0.0374707]
[1727306063072,8.90919771,2580.3,2580.2,0.0374707]
[1727306064334,6.87551,2580.3,2580.2,0.0374707]
[1727306064580,8.90919771,2580.3,2580.2,0.0374707]
[1727306065141,8.90902487,2580.3,2580.2,0.0374707]
[1727306068548,5.03351487,2580.3,2580.2,0.0374707]
[1727306068754,4.62681253,2580.3,2580.2,0.0374707]
[1727306071862,4.62662349,2580.3,2580.2,0.0374707]
[1727306072611,8.02595372,2580.3,2580.2,0.0374707]
[1727306072773,9.96256905,2580.3,2580.2,0.0374707]
[1727306073616,8.47906023,2580.3,2580.2,0.0374707]
[1727306077212,9.45876015,2580.3,2580.2,0.0374707]
[1727306078320,9.45883577,2580.3,2580.2,0.0374707]
[1727306078484,8.26401,2580.3,2580.2,0.0374707]
[1727306081300,11.11017321,2580.3,2580.2,0.0374707]
[1727306083628,8.26401,2580.3,2580.2,0.0374707]
[1727306083934,10.32802337,2580.3,2580.2,0.0374707]
[1727306085531,12.76698638,2580.3,2580.2,0.0374707]
[1727306085831,15.87157686,2580.3,2580.2,0.0374707]
[1727306086797,16.42165159,2580.3,2580.2,0.0374707]
[1727306087096,16.42166298,2580.3,2580.2,0.0374707]